bitfinex/quotes_ETHUSD_20240910
["timestamp","ask_amount","ask_price","bid_price","bid_amount"]
[1725968568996,1.78199468,2351.6,2351.2,2.2588]
[1725968569535,1.78199468,2351.7,2351.2,2.2588]
[1725968569833,1.78199468,2351.6,2351.2,2.2588]
[1725968572414,1.78199468,2351.7,2351.2,2.2588]
[1725968572811,1.78199468,2351.6,2351.2,2.2588]
[1725968573009,1.78199468,2351.7,2351.2,2.2588]
[1725968573433,1.78199468,2351.6,2351.2,2.2588]
[1725968573823,1.78199468,2351.7,2351.2,2.2588]
[1725968574024,1.78199468,2351.6,2351.2,2.2588]
[1725968575731,1.78199468,2351.7,2351.2,2.2588]
[1725968575949,1.78199468,2351.6,2351.2,2.2588]
[1725968580376,1.78199468,2351.6,2351.0,0.55]
[1725968580377,1.78199468,2351.5,2351.0,2.9028]
[1725968580547,4.12479468,2351.4,2350.9,7.48]
[1725968580868,4.12479468,2351.4,2350.8,2.3528]
[1725968580869,1.78199468,2351.2,2350.8,2.3528]
[1725968581077,5.02914864,2351.3,2350.8,2.3528]
[1725968581238,1.78199468,2351.3,2350.8,2.3528]
[1725968585261,1.78199468,2351.2,2350.8,2.3528]
[1725968585646,1.78199468,2351.2,2350.6,2.357]
[1725968585887,1.78199468,2351.1,2350.6,5.09654801]
[1725968586448,1.78199468,2351.2,2350.6,5.09654801]
[1725968586653,1.78199468,2351.1,2350.6,2.357]
[1725968587250,1.78199468,2351.2,2350.6,2.357]
[1725968587466,1.78199468,2351.2,2350.6,2.63975545]
[1725968587790,1.78199468,2351.2,2350.8,2.4381]
[1725968593028,1.78199468,2351.3,2350.8,2.4381]
[1725968594044,1.78199468,2351.2,2350.8,2.4381]
[1725968594341,2.86278266,2351.3,2350.8,2.4381]
[1725968595341,1.78199468,2351.3,2350.8,2.4381]
[1725968597203,1.78199468,2351.2,2350.8,2.4381]
[1725968597842,1.78199468,2351.3,2350.8,2.4381]
[1725968598160,2.18286047,2351.2,2350.8,2.4381]
[1725968598433,1.78199468,2351.2,2350.8,2.4381]
[1725968599304,1.78199468,2351.3,2350.8,2.4381]
[1725968603546,1.78199468,2351.5,2351.0,2.2959]
[1725968603902,1.78199468,2351.4,2351.0,2.2959]
[1725968604106,1.78199468,2351.5,2351.0,2.2959]
[1725968604441,1.78199468,2351.5,2351.0,2.5889969]
[1725968605208,1.78199468,2351.4,2351.0,2.5889969]
[1725968605609,1.78199468,2351.5,2351.0,2.5889969]
[1725968605804,1.78199468,2351.5,2351.2,2.4057]
[1725968606138,1.78199468,2351.6,2351.2,2.4057]
[1725968611721,1.78199468,2351.4,2351.0,2.351]
[1725968611923,1.78199468,2351.4,2350.7,2.351]
[1725968612130,1.78199468,2351.3,2350.7,2.351]
[1725968612330,1.78199468,2351.3,2350.9,2.351]
[1725968612534,1.78199468,2351.5,2351.1,2.2679]
[1725968612756,1.78199468,2351.5,2351.3,2.2679]
[1725968613476,1.78199468,2351.5,2350.9,2.2679]
[1725968613628,1.78199468,2351.5,2351.1,2.4826]
[1725968613834,1.78199468,2351.5,2351.2,0.85326]
[1725968614128,1.78199468,2351.5,2351.2,0.55]
[1725968614560,4.28059468,2351.5,2350.7,2.4826]
[1725968614764,0.65046661,2351.4,2350.7,2.4826]
[1725968615068,1.78199468,2351.4,2350.7,2.4826]
[1725968615811,1.78199468,2351.4,2350.8,2.56766349]
[1725968615951,1.78199468,2351.5,2350.8,2.56766349]
[1725968616141,1.78199468,2351.5,2351.0,2.4134]
[1725968616344,1.78199468,2351.6,2351.2,2.4134]
[1725968616552,1.78199468,2351.6,2351.3,0.08505074]
[1725968616787,1.78199468,2351.7,2351.3,0.08505074]
[1725968616946,1.78199468,2351.6,2351.3,0.08505074]
[1725968617758,1.78199468,2351.6,2351.2,2.4134]
[1725968617959,1.78199468,2351.5,2351.2,2.4134]
[1725968618854,1.78199468,2351.4,2351.2,2.4134]
[1725968619173,1.78199468,2351.4,2351.0,2.4368]
[1725968621774,1.78199468,2351.5,2351.0,2.4368]
[1725968621988,1.78199468,2351.5,2351.1,0.84868]
[1725968622365,1.78199468,2351.6,2351.2,2.4877]
[1725968623383,1.3352951,2351.5,2351.2,2.4877]
[1725968623685,1.3352951,2351.4,2351.2,2.4877]
[1725968623889,1.3352951,2351.4,2351.2,2.57275197]
[1725968624093,1.3352951,2351.4,2351.2,2.88502717]
[1725968624307,1.3352951,2351.5,2351.3,0.63504905]
[1725968625367,1.3352951,2351.4,2351.3,0.63504905]
[1725968625667,1.3352951,2351.5,2351.3,0.63504905]
[1725968625906,1.3352951,2351.4,2351.3,0.63504905]
[1725968626106,1.3352951,2351.5,2351.3,0.63504905]
[1725968626403,1.3352951,2351.5,2351.3,0.97855148]
[1725968626995,1.3352951,2351.4,2351.3,0.97855148]
[1725968627525,1.3352951,2351.5,2351.3,0.97855148]
[1725968629575,1.3352951,2351.6,2351.4,2.67802515]
[1725968629773,1.78199468,2351.7,2351.5,2.9664444]
[1725968629774,1.3352951,2351.7,2351.5,2.9664444]
[1725968630028,1.3352951,2351.8,2351.7,2.3314]
[1725968630224,1.3352951,2351.8,2351.7,2.41643584]
[1725968630519,1.3352951,2351.8,2351.7,3.23774387]
[1725968630879,1.3352951,2351.8,2351.7,3.15270803]
[1725968631119,1.3352951,2351.8,2351.7,0.55]
[1725968631622,1.3352951,2351.8,2351.6,0.55]
[1725968632893,1.3352951,2351.9,2351.6,0.55]
[1725968633481,0.88962828,2351.8,2351.6,0.55]
[1725968633714,0.88962828,2351.8,2351.7,0.28814]
[1725968633920,0.88962828,2351.8,2351.7,0.83814]
[1725968636388,0.88962828,2351.8,2351.7,3.11254]
[1725968636589,0.88962828,2351.9,2351.7,2.8244]
[1725968636784,0.88962828,2351.9,2351.8,0.55]
[1725968637118,0.88962828,2351.9,2351.8,0.8959432]
[1725968637290,0.88962828,2352.0,2351.8,0.8959432]
[1725968637491,0.88962828,2352.0,2351.8,0.98097288]
[1725968638036,0.88962828,2352.0,2351.9,2.3914]
[1725968638190,0.88962828,2352.1,2351.9,2.9414]
[1725968638402,0.88962828,2352.0,2351.9,2.3914]
[1725968638712,0.88962828,2352.0,2351.9,3.23554]
[1725968639303,0.88962828,2352.0,2351.9,0.55]
[1725968639531,0.88962828,2352.0,2351.8,0.55]
[1725968639532,1.3352951,2352.0,2351.8,0.55]
[1725968639747,0.88882437,2352.0,2351.8,0.55]
[1725968642306,0.88882437,2352.0,2351.3,2.286]
[1725968642622,0.88882437,2351.9,2351.3,5.286]
[1725968642824,0.88882437,2352.0,2351.4,0.5286]
[1725968643129,0.88882437,2351.9,2351.3,2.286]
[1725968644152,0.88882437,2351.9,2351.4,0.55]
[1725968644441,0.88882437,2351.9,2351.1,22.53]
[1725968644442,4.81366679,2351.8,2351.1,24.827]
[1725968644659,4.81366679,2351.8,2351.2,2.253]
[1725968645523,0.88882437,2351.7,2351.2,2.253]
[1725968645875,0.88882437,2351.7,2351.1,21.827]
[1725968646033,0.88882437,2351.6,2351.2,0.55]
[1725968647817,0.88882437,2351.5,2351.2,0.55]
[1725968648753,0.88882437,2351.4,2351.2,0.55]
[1725968648920,0.88882437,2351.4,2351.0,0.55]
[1725968649122,0.88882437,2351.4,2351.0,1.54135]
[1725968649345,0.88882437,2351.4,2351.0,0.55]
[1725968652223,0.88882437,2351.4,2351.0,3.0061]
[1725968653137,0.88882437,2351.4,2351.1,0.08505669]
[1725968653406,0.88882437,2351.5,2351.2,0.55]
[1725968653583,0.88882437,2351.5,2351.3,2.55844771]
[1725968653857,0.88882437,2351.6,2351.4,0.55]
[1725968654457,0.88882437,2351.6,2351.4,0.63504681]
[1725968654866,0.88882437,2351.6,2351.4,0.55]
[1725968655024,0.88882437,2351.5,2351.4,0.55]
[1725968655219,0.88882437,2351.6,2351.0,2.4933]
[1725968655418,0.88882437,2351.5,2351.0,3.06823258]
[1725968655731,0.88882437,2351.5,2351.1,0.55]
[1725968657547,0.88882437,2351.5,2351.2,0.0850521]
[1725968657752,0.88882437,2351.6,2351.2,0.0850521]
[1725968657943,0.88882437,2351.6,2351.2,0.39788731]
[1725968658782,0.88882437,2351.6,2351.3,2.88645132]
[1725968658989,0.88882437,2351.5,2351.3,2.88645132]
[1725968659284,0.88882437,2351.5,2351.4,0.08504852]
[1725968659481,0.88882437,2351.5,2351.4,0.63504852]
[1725968660556,0.88882437,2351.5,2351.4,0.55]
[1725968660743,0.88882437,2351.5,2351.4,0.83014]
[1725968662273,0.88882437,2351.5,2351.4,0.55]
[1725968662959,2.4355,2351.8,2351.4,0.55]
[1725968663159,2.4355,2351.8,2351.5,0.55]
[1725968663658,2.4355,2351.8,2351.4,0.55]
[1725968664461,2.4355,2351.8,2351.2,0.55]
[1725968664661,0.88966598,2351.5,2351.2,0.55]
[1725968666995,0.88966598,2351.5,2351.3,0.08504729]
[1725968667202,0.88966598,2351.5,2351.4,2.8406]
[1725968668177,0.88966598,2351.5,2351.4,0.55]
[1725968668374,0.88966598,2351.5,2351.3,0.55]
[1725968669741,0.88966598,2351.4,2351.3,0.55]
[1725968670046,0.88966598,2351.5,2351.3,0.55]
[1725968670201,0.88966598,2351.5,2351.0,2.2906]
[1725968670398,0.88966598,2351.4,2350.9,19.53]
[1725968670626,2.4375,2351.3,2350.9,19.53]
[1725968670904,3.32716598,2351.3,2350.9,22.61031219]
[1725968671110,0.88966598,2351.2,2350.9,22.61031219]
[1725968672158,4.66166495,2351.3,2350.9,22.61031219]
[1725968672446,0.88966598,2351.2,2351.0,3.23809122]
[1725968673620,0.88966598,2351.2,2350.9,19.53]
[1725968673841,0.88966598,2351.2,2351.0,0.55]
[1725968679986,3.32716598,2351.3,2351.0,0.55]
[1725968680478,0.88966598,2351.2,2351.0,0.55]
[1725968681541,2.4854,2351.1,2350.6,2.4683]
[1725968681763,2.4854,2351.1,2350.7,3.64808219]
[1725968681966,3.37506598,2351.3,2350.7,0.55]
[1725968682174,0.88966598,2351.2,2350.7,1.00208219]
[1725968684097,0.88966598,2351.2,2350.7,2.09526389]
[1725968684419,0.88966598,2351.1,2350.7,1.00208219]
[1725968684632,0.88966598,2351.1,2350.8,0.34703822]
[1725968685142,0.88966598,2351.1,2350.7,1.00208219]
[1725968685301,0.88966598,2351.1,2350.7,0.55]
[1725968685638,0.88966598,2351.1,2350.5,0.55]
[1725968685639,2.4803,2351.0,2350.5,0.55]
[1725968685811,2.4803,2351.0,2350.6,0.66572766]
[1725968686140,2.4803,2351.0,2350.7,0.55]
[1725968686718,0.88966598,2351.1,2350.7,0.55]
[1725968687031,0.88966598,2351.1,2350.7,2.9864]
[1725968687641,0.88966598,2351.2,2350.8,1.58759282]
[1725968687843,0.88966598,2351.3,2351.0,1.50252193]
[1725968688008,1.33449897,2351.4,2351.0,1.50252193]
[1725968688009,0.88966598,2351.4,2351.1,2.52145541]
[1725968688204,0.88966598,2351.4,2351.2,0.40239773]
[1725968689753,0.88966598,2351.3,2351.2,0.40239773]
[1725968689947,0.88966598,2351.3,2351.2,0.95239773]
[1725968690149,0.88966598,2351.4,2351.2,0.95239773]
[1725968690504,0.88966598,2351.3,2351.2,0.95239773]
[1725968696613,0.88966598,2351.4,2351.2,0.95239773]
[1725968696815,0.88966598,2351.4,2351.3,0.89738531]
[1725968697559,1.33449897,2351.5,2351.3,0.89738531]
[1725968698210,1.33449897,2351.4,2351.3,0.55]
[1725968698416,0.89035295,2351.4,2351.3,0.55]
[1725968698678,0.89035994,2351.4,2351.3,0.55]
[1725968698876,1.33449897,2351.5,2351.3,0.55]
[1725968699302,0.89036304,2351.4,2351.3,0.55]
[1725968699500,1.33449897,2351.5,2351.3,0.85714494]
[1725968700007,0.89027908,2351.4,2351.3,0.85714494]
[1725968700494,1.33449897,2351.5,2351.3,0.85714494]
[1725968700696,0.8901383,2351.4,2351.3,0.85714494]
[1725968701604,0.8901383,2351.4,2351.3,3.23644494]
[1725968701758,0.8901383,2351.6,2351.3,2.9293]
[1725968702189,0.8901383,2351.5,2351.3,2.9293]
[1725968702496,0.8901383,2351.5,2351.4,0.44318219]
[1725968702803,0.8901383,2351.5,2351.4,0.99318219]
[1725968703159,0.8901383,2351.6,2351.4,0.99318219]
[1725968703354,0.8901383,2351.6,2351.5,0.55]
[1725968704460,0.8901383,2351.6,2351.5,3.42529196]
[1725968704755,2.22517216,2351.9,2351.6,2.3047]
[1725968704756,0.8901383,2351.9,2351.6,2.3047]
[1725968704954,0.8901383,2352.0,2351.8,2.3047]
[1725968705194,0.8901383,2352.0,2351.9,0.55]
[1725968705195,1.33449897,2352.0,2351.9,0.55]
[1725968705584,1.33449897,2352.0,2351.8,0.55]
[1725968705898,1.33449897,2352.0,2351.8,2.82123992]
[1725968705899,0.88971037,2351.9,2351.8,2.82123992]
[1725968706398,0.88971037,2351.9,2351.8,0.55]
[1725968706558,0.88971037,2351.9,2351.7,0.55]
[1725968706756,0.88971037,2351.8,2351.7,0.55]
[1725968707161,0.88971037,2351.8,2351.7,2.59172482]
[1725968707398,0.88971037,2351.9,2351.7,2.59172482]
[1725968707601,0.88971037,2351.9,2351.7,5.10825539]
[1725968707903,0.88971037,2352.0,2351.8,0.08503057]
[1725968708084,0.88971037,2352.0,2351.9,0.55]
[1725968708286,0.88971037,2352.1,2351.9,0.55]
[1725968708585,0.88971037,2352.1,2352.0,0.30988561]
[1725968708586,0.8892044,2352.1,2352.0,0.30988561]
[1725968708789,0.8892044,2352.1,2352.0,0.85988561]
[1725968709479,0.8892044,2352.1,2352.0,0.55]
[1725968709675,0.8892044,2352.1,2351.9,0.63502466]
[1725968711010,0.8892044,2352.1,2351.9,0.55]
[1725968711367,0.8892044,2352.1,2351.8,0.55]
[1725968711714,0.8892044,2352.1,2351.8,2.89640219]
[1725968712372,0.8892044,2352.0,2351.6,19.53]
[1725968714580,0.8892044,2352.0,2351.7,0.55]
[1725968715416,0.8892044,2352.0,2351.6,0.55]
[1725968715589,0.8892044,2352.0,2351.6,1.56774482]
[1725968717414,0.8892044,2352.0,2351.6,0.55]
[1725968718676,3.3642044,2352.1,2351.6,0.55]
[1725968718999,0.8892044,2352.0,2351.6,0.55]
[1725968719381,3.3642044,2352.1,2351.6,0.55]
[1725968719583,3.3642044,2352.1,2351.7,0.56003027]
[1725968719810,0.8892044,2352.1,2351.8,2.9582]
[1725968720391,0.8892044,2352.1,2351.8,3.04323331]
[1725968720611,0.8892044,2352.2,2351.9,0.36032636]
[1725968720902,0.8892044,2352.2,2352.0,0.63502526]
[1725968721694,0.8892044,2352.1,2352.0,0.63502526]
[1725968721895,0.8892044,2352.1,2352.0,0.55]
[1725968723537,0.8892044,2352.2,2352.0,0.55]
[1725968725056,0.8892044,2352.1,2352.0,0.55]
[1725968727537,0.8892044,2352.2,2352.0,0.55]
[1725968728620,0.8892044,2352.1,2352.0,0.55]
[1725968732636,0.8892044,2352.1,2351.8,0.55]
[1725968732976,0.8892044,2352.1,2351.8,0.8364597]
[1725968733480,0.8892044,2352.0,2351.8,0.8364597]
[1725968733782,0.8892044,2352.1,2351.9,0.08502866]
[1725968734102,0.88782893,2352.1,2352.0,0.55]
[1725968734242,0.88776137,2352.1,2352.0,0.55]
[1725968734442,1.33449897,2352.2,2352.0,0.55]
[1725968734871,0.88785201,2352.1,2351.9,0.55]
[1725968735185,0.88785201,2352.0,2351.9,0.63502687]
[1725968735544,0.88785201,2352.0,2351.9,0.55]
[1725968736285,0.88785201,2352.1,2351.9,0.63502781]
[1725968736480,0.88785201,2352.1,2351.9,2.96172781]
[1725968736683,0.88785201,2352.1,2352.0,0.32481875]
[1725968736898,0.88785201,2352.2,2352.0,0.87481875]
[1725968737038,0.88785201,2352.2,2352.1,0.55]
[1725968737485,3.71639897,2352.2,2352.1,0.55]
[1725968737655,3.71639897,2352.2,2351.6,2.4067]
[1725968737982,0.88815883,2352.1,2351.7,0.79067]
[1725968739446,1.33449897,2352.2,2351.7,0.79067]
[1725968739447,0.88815883,2352.0,2351.7,0.79067]
[1725968739942,0.88815883,2352.1,2351.8,0.0850289]
[1725968740146,0.88815883,2352.1,2351.9,2.8315]
[1725968741449,0.88815883,2352.0,2351.9,2.8315]
[1725968741794,0.88815883,2352.1,2351.9,2.8315]
[1725968741945,0.88815883,2352.0,2351.9,2.8315]
[1725968742146,0.88815883,2352.0,2351.9,3.138717]
[1725968743151,0.88815883,2352.0,2351.9,0.857217]
[1725968744305,0.88815883,2352.0,2351.9,4.78263893]
[1725968744517,0.88815883,2352.1,2351.9,4.78263893]
[1725968744734,0.88815883,2352.1,2352.0,0.57178772]
[1725968744931,0.88815883,2352.1,2352.0,1.12178772]
[1725968745722,0.88815883,2352.1,2352.0,1.03676668]
[1725968746431,0.88815883,2352.1,2352.0,0.55]
[1725968747402,1.33449897,2352.2,2352.0,0.55]
[1725968747655,1.33449897,2352.2,2352.1,0.55]
[1725968748173,1.33449897,2352.2,2352.0,0.55]
[1725968748336,0.88969517,2352.1,2352.0,0.55]
[1725968748640,0.88969517,2352.1,2352.0,3.0397]
[1725968748817,0.88969517,2352.1,2352.0,3.38289399]
[1725968750110,0.88969517,2352.3,2352.0,3.81011566]
[1725968750310,0.88969517,2352.3,2352.1,2.01475893]
[1725968750552,0.88969517,2352.3,2352.2,1.08976529]
[1725968751434,0.88969517,2352.4,2352.2,1.08976529]
[1725968751772,1.33449897,2352.5,2352.3,0.08501391]
[1725968751937,0.88966307,2352.4,2352.3,0.35274402]
[1725968752306,0.88966307,2352.4,2352.3,3.39474402]
[1725968752439,0.88966307,2352.5,2352.3,3.39474402]
[1725968752626,0.88966307,2352.5,2352.4,0.94345093]
[1725968753662,0.88966307,2352.5,2352.4,0.55]
[1725968755131,1.33449897,2352.6,2352.4,0.55]
[1725968755346,0.88903112,2352.5,2352.4,0.55]
[1725968755569,3.69509897,2352.5,2352.2,0.55]
[1725968755766,0.88901919,2352.4,2352.0,3.55]
[1725968755939,0.88901919,2352.4,2352.0,2.88339219]
[1725968757145,0.88901919,2352.4,2352.0,22.41339219]
[1725968759695,3.24961919,2352.5,2352.0,22.41339219]
[1725968759880,3.24961919,2352.5,2352.1,2.62173141]
[1725968760188,3.24961919,2352.5,2352.2,0.55]
[1725968760485,0.88901919,2352.4,2352.2,0.55]
[1725968762395,3.24961919,2352.5,2352.2,0.55]
[1725968762686,0.88901919,2352.4,2352.2,2.82017314]
[1725968762996,0.88901919,2352.4,2352.2,0.55]
[1725968763215,0.88901919,2352.3,2352.1,0.55]
[1725968763382,0.88901919,2352.3,2352.0,0.55]
[1725968763559,0.88901919,2352.3,2352.0,2.73314]
[1725968764291,0.88901919,2352.4,2352.0,2.73314]
[1725968765673,0.88901919,2352.4,2352.1,0.66528347]
[1725968766011,0.88901919,2352.4,2352.2,0.88984235]
[1725968767486,0.88901919,2352.4,2352.2,3.37704235]
[1725968768088,0.88901919,2352.4,2352.3,0.08501796]
[1725968768379,0.88901919,2352.6,2352.3,2.13753989]
[1725968768589,1.33449897,2352.7,2352.3,2.13753989]
[1725968768590,0.88901919,2352.7,2352.5,2.3737]
[1725968768785,0.88901919,2352.7,2352.6,0.29237]
[1725968768982,1.33449897,2352.7,2352.6,0.55]
[1725968769378,1.33449897,2352.8,2352.6,0.55]
[1725968769585,1.33449897,2352.8,2352.7,0.55]
[1725968770011,1.33449897,2352.8,2352.6,0.55]
[1725968770214,0.888879,2352.7,2352.6,0.55]
[1725968771387,0.888879,2352.8,2352.6,0.55]
[1725968771579,0.888879,2352.8,2352.7,0.08500337]
[1725968771912,0.888879,2352.8,2352.7,0.55]
[1725968772110,0.888879,2352.8,2352.7,1.04888218]
[1725968774616,0.888879,2352.9,2352.7,1.04888218]
[1725968774796,1.33449897,2352.9,2352.8,0.55]
[1725968774978,4.00132603,2353.1,2352.8,1.03351667]
[1725968774979,0.88886167,2353.1,2352.8,1.03351667]
[1725968775202,0.88886167,2353.0,2352.8,1.03351667]
[1725968775462,0.88886167,2353.1,2352.9,0.30349208]
[1725968775695,0.88886167,2353.1,2353.0,0.55]
[1725968776118,1.33449897,2353.2,2352.9,0.55]
[1725968776366,0.88873826,2353.1,2353.0,0.08498933]
[1725968776480,0.88873826,2353.1,2353.0,0.55]
[1725968778025,0.88873826,2353.1,2352.9,0.55]
[1725968778207,0.88873826,2353.1,2353.0,0.08499031]
[1725968778391,0.88873826,2353.2,2353.0,0.63499031]
[1725968778700,1.77933196,2353.4,2353.2,2.4489]
[1725968778701,0.88873826,2353.4,2353.2,2.4489]
[1725968779038,1.77933196,2353.7,2353.2,2.4489]
[1725968779039,0.88873826,2353.6,2353.2,2.4489]
[1725968779234,0.88873826,2353.6,2353.1,2.04152346]
[1725968779235,0.88873826,2353.5,2353.3,0.55]
[1725968779535,3.16443826,2353.6,2353.3,0.55]
[1725968779696,3.16443826,2353.6,2353.2,0.55]
[1725968779902,3.16443826,2353.6,2353.1,0.9705025]
[1725968781632,0.88873826,2353.7,2353.1,0.9705025]
[1725968781928,0.88873826,2353.7,2353.3,2.4721]
[1725968782115,0.88873826,2353.7,2353.4,0.55]
[1725968782735,0.88873826,2353.7,2353.4,0.63497446]
[1725968782893,0.88873826,2353.8,2353.4,0.63497446]
[1725968783095,0.88873826,2353.7,2353.4,0.63497446]
[1725968783295,0.88873826,2353.8,2353.4,0.94568191]
[1725968783889,0.88873826,2353.9,2353.5,0.34177819]
[1725968784103,0.88873826,2354.0,2353.6,2.95186724]
[1725968784408,0.88873826,2354.1,2353.7,0.32936454]
[1725968784616,3.19983826,2354.2,2353.8,0.63495764]
[1725968784820,0.88873826,2354.1,2353.8,1.02657658]
[1725968785425,3.19983826,2354.2,2353.8,1.02657658]
[1725968785635,2.3111,2354.2,2353.8,1.02657658]
[1725968785841,3.19983826,2354.2,2353.8,1.02657658]
[1725968786437,2.3111,2354.2,2353.8,1.02657658]
[1725968787205,2.3111,2354.2,2353.8,0.55]
[1725968787733,2.3111,2354.2,2353.5,19.87177819]
[1725968787734,2.3111,2354.2,2353.7,2.3105]
[1725968787945,2.3111,2354.2,2353.8,0.55]
[1725968788111,2.3111,2354.2,2353.6,0.55]
[1725968788328,2.3111,2354.2,2353.6,2.59217782]
[1725968791311,2.3111,2354.2,2353.5,2.3105]
[1725968791652,6.44817739,2354.2,2353.5,2.3105]
[1725968793448,6.44817739,2354.2,2353.6,0.55]
[1725968793811,3.19983826,2354.2,2353.6,0.55]
[1725968794026,4.37210111,2354.2,2353.6,0.55]
[1725968794609,7.62044024,2354.2,2353.6,0.55]
[1725968797916,2.367,2353.9,2353.6,0.55]
[1725968798138,2.367,2353.9,2353.2,9.839]
[1725968798139,6.25573826,2354.1,2353.3,2.359]
[1725968798446,5.367,2354.1,2353.5,2.4806]
[1725968798655,5.367,2354.1,2353.6,0.55]
[1725968798656,3.0,2354.1,2353.6,0.55]
[1725968798803,4.17226285,2354.2,2353.7,2.4806]
[1725968799015,3.19393826,2354.3,2353.8,0.55]
[1725968799256,2.3052,2354.3,2353.8,0.55]
[1725968799624,2.3052,2354.3,2353.8,0.634962]
[1725968799841,2.3052,2354.3,2353.8,0.55]
[1725968800722,3.04935847,2354.4,2353.8,0.55]
[1725968800923,7.23885045,2354.4,2353.8,0.55]
[1725968801119,2.4068,2354.2,2353.8,0.55]
[1725968801342,5.65513913,2354.2,2353.8,0.55]
[1725968801553,6.54387739,2354.2,2353.6,0.55]
[1725968801758,7.64189233,2354.2,2353.6,0.55]
[1725968806223,1.49968935,2354.1,2353.6,0.55]
[1725968807439,2.38842761,2354.1,2353.6,0.55]
[1725968807897,1.49968935,2354.1,2353.6,0.55]
[1725968808574,1.49968935,2354.1,2353.7,2.4033]
[1725968809273,0.88873826,2354.2,2353.8,0.08496841]
[1725968809482,0.88873826,2354.2,2353.9,0.55]
[1725968810970,0.88873826,2354.2,2354.0,2.4033]
[1725968811170,0.88873826,2354.3,2354.0,2.4033]
[1725968811833,0.88873826,2354.3,2354.0,2.69863]
[1725968813082,0.88873826,2354.3,2354.1,0.55]
[1725968814172,3.04935847,2354.4,2354.1,0.55]
[1725968814362,0.88873826,2354.3,2354.1,0.55]
[1725968816701,0.88873826,2354.2,2353.8,2.3076]
[1725968816901,0.88873826,2354.2,2353.9,0.55]
[1725968817391,0.88873826,2354.1,2353.9,0.55]
[1725968820466,0.88873826,2354.0,2353.9,0.55]
[1725968820699,0.88873826,2354.0,2353.7,0.55]
[1725968820700,1.33449897,2354.0,2353.7,0.55]
[1725968821004,0.8899619,2353.9,2353.7,0.55]
[1725968822596,0.8899619,2353.8,2353.7,0.55]
[1725968823262,0.8899619,2353.8,2353.7,0.933636]
[1725968823690,0.8899619,2353.8,2353.7,0.55]
[1725968824121,0.8899619,2353.8,2353.5,0.55]
[1725968824262,0.8899619,2353.7,2353.5,0.55]
[1725968828387,0.8899619,2353.7,2353.6,2.3451]
[1725968828582,0.8899619,2353.7,2353.6,3.18461]
[1725968829109,0.8899619,2353.9,2353.7,2.3322]
[1725968829402,1.33449897,2354.0,2353.8,2.96716045]
[1725968829403,0.8899619,2354.0,2353.8,2.96716045]
[1725968829564,0.8899619,2353.9,2353.8,3.28433145]
[1725968830096,1.33449897,2354.1,2353.8,3.28433145]
[1725968830097,0.8899619,2354.0,2353.8,3.28433145]
[1725968830303,0.8899619,2354.0,2353.9,4.31029143]
[1725968830618,0.8899619,2354.0,2353.9,4.86029143]
[1725968830788,0.8899619,2354.0,2353.9,3.36060208]
[1725968832267,0.8899619,2354.1,2353.9,1.02840208]
[1725968832498,0.8899619,2354.1,2354.0,3.01705242]
[1725968832702,0.8899619,2354.1,2354.0,3.42159787]
[1725968833818,0.8899619,2354.1,2354.0,3.33664545]
[1725968834104,4.61352028,2354.1,2353.7,19.53]
[1725968834326,0.89144058,2353.9,2353.7,19.53]
[1725968834462,0.89144058,2353.8,2353.7,19.53]
[1725968836207,0.89144058,2353.8,2353.7,21.9121]
[1725968836401,0.89144058,2353.9,2353.7,25.46811034]
[1725968836710,0.89144058,2354.0,2353.8,1.29977798]
[1725968836879,0.89144058,2354.0,2353.9,2.55530569]
[1725968837138,0.89144058,2354.0,2353.9,3.10530569]
[1725968838120,0.89144058,2354.0,2353.9,0.55]
[1725968838907,1.33716087,2354.0,2353.9,0.55]
[1725968839107,4.27473196,2354.1,2353.7,0.55]
[1725968839274,0.89153155,2353.8,2353.7,0.55]
[1725968839467,0.89153155,2353.8,2353.7,2.80069]
[1725968844210,0.89153155,2353.8,2353.7,0.55]
[1725968844418,0.89153155,2353.8,2353.6,0.55]
[1725968845189,0.89153155,2353.8,2353.7,0.6648704]
[1725968845396,0.89153155,2353.8,2353.7,1.2148704]
[1725968845601,0.89153155,2353.8,2353.7,3.58704744]
[1725968845914,0.89153155,2353.8,2353.7,2.92217704]
[1725968846222,0.89153155,2353.8,2353.7,3.58704855]
[1725968846535,0.89153155,2353.8,2353.7,2.92217704]
[1725968847515,0.89153155,2353.8,2353.7,3.58705103]
[1725968847821,0.89153155,2353.8,2353.7,2.92217704]
[1725968848022,0.89153155,2353.8,2353.7,3.58705247]
[1725968849072,0.89153155,2353.8,2353.7,2.92217704]
[1725968849327,0.89153155,2353.8,2353.7,3.58706017]
[1725968850530,0.89153155,2353.8,2353.7,2.92217704]
[1725968850690,0.89153155,2353.8,2353.7,3.58704638]
[1725968852289,0.89153155,2353.9,2353.7,3.58704638]
[1725968852585,0.89153155,2353.9,2353.8,3.99167398]
[1725968854108,0.89153155,2353.9,2353.8,3.32680464]
[1725968854310,1.33729733,2354.0,2353.8,3.99165806]
[1725968854512,1.33729733,2354.0,2353.8,3.32680464]
[1725968854698,0.89126464,2353.9,2353.8,3.41176481]
[1725968855020,0.89126464,2353.9,2353.8,3.99165518]
[1725968855531,1.33729733,2354.0,2353.8,3.99165518]
[1725968855704,1.33729733,2354.0,2353.8,3.32680464]
[1725968856027,0.89133391,2353.9,2353.8,3.32680464]
[1725968856227,1.33729733,2354.0,2353.8,3.32680464]
[1725968856894,1.33729733,2353.9,2353.8,3.41176497]
[1725968857233,1.33729733,2353.9,2353.8,3.32680464]
[1725968858125,1.33729733,2353.9,2353.8,0.90870464]
[1725968858300,1.33729733,2353.9,2353.8,0.55]
[1725968858507,1.33729733,2353.9,2353.7,0.55]
[1725968858814,0.89122834,2353.8,2353.7,0.55]
[1725968859001,0.89122834,2353.8,2353.7,2.008]
[1725968859237,0.89122834,2353.8,2353.7,2.558]
[1725968860782,0.89122834,2353.8,2353.7,4.9161]
[1725968862088,1.33729733,2353.8,2353.7,2.558]
[1725968862339,1.33729733,2353.8,2353.7,0.55]
[1725968862630,1.33729733,2353.8,2353.6,0.55]
[1725968862796,1.33729733,2353.8,2353.7,2.008]
[1725968862994,1.33729733,2353.8,2353.7,2.558]
[1725968868242,2.3377,2353.9,2353.7,2.558]
[1725968868243,1.33729733,2353.9,2353.7,2.558]